Cogmind - Beta 10.2 @@@ ROGUE MODE // 2022.02.19 @ 12:32:15 Player: Conner Result: Destroyed by S-27 Virus with Autogun Performance ------------- Evolutions (6) 3000 Regions Visited (13) 2600 Robots Destroyed (163) 815 Value Destroyed (4908) 4908 Prototype IDs (15) 300 Alien Tech Used (0) 0 Bonus (1230) 1230 TOTAL SCORE: 12853 Bonus ------- High Alert Combat Kills 318 Follower Combat Kills 937 Friendly Fire -25 Cogmind --------- Core Integrity 0/1150 Matter 58/300 Energy 98/100 System Corruption 4% Temperature Cool (0) Movement Core (50) Location -4/Upper Caves Parts ------- > --- POWER (2) -------- (None) > --- PROPULSION (4) --- (None) > --- UTILITY (11) ----- (None) > --- WEAPON (2) ------- (None) > --- INVENTORY (4) ---- Heavy Treads High-capacity Storage Unit Improved Heavy Machine Gun Peak State ------------ > --- POWER ------------ Antimatter Reactor Antimatter Reactor > --- PROPULSION ------- Heavy Treads Heavy Treads > --- UTILITY ---------- Advanced Heat Sink Improved Cooling System Improved Cooling System High-capacity Storage Unit Advanced Target Analyzer Damper Plating Improved Thermal Shield > --- WEAPON ----------- Heavy Machine Gun Improved Heavy Machine Gun > --- INVENTORY -------- Ion Engine Heavy Treads High-capacity Storage Unit Tesla Rifle Enhanced Autogun Flak Gun Improved Heavy Machine Gun Improved Heavy Machine Gun Advanced Assault Cannon EMP Blaster Shock Bomb Launcher [Rating: 98] Favorites ----------- Power Ion Engine Engine Ion Engine Power Core Light Nuclear Core Reactor Antimatter Reactor Propulsion Wheel Treads Heavy Treads Leg Aluminum Leg Wheel Wheel Hover Unit Hover Unit Utility High-capacity Storage Unit Device Improved Cooling System Storage High-capacity Storage Unit Processor Advanced Target Analyzer Hackware Hacking Suite Protection Hardened Medium Armor Plating Weapon Flak Cannon Energy Gun Small Laser Energy Cannon Heavy Ion Cannon Ballistic Gun Improved Heavy Machine Gun Ballistic Cannon Flak Cannon Launcher EMP Blaster Build | -11 -10 -10 -9 -8 -7 -7 -7 -6 -5 -5 -5 -4 -4 ------- Run | Scr Mat Min Mat Mat Fac Was Fac Fac Fac Was Fac Fac Upp Slots Evolved 12 | . . . 2 2 2 . . 2 2 . . 2 . Power 1 | . . . . . 1 . . . . . . . . Propulsion 2 | . . . . . 1 . . 1 . . . . . Utility 9 | . . . 2 2 . . . 1 2 . . 2 . Weapon . | . . . . . . . . . . . . . . Parts Attached 192 | 6 22 4 22 43 24 19 7 4 14 11 15 . 1 Power 29 | 2 4 . 3 6 5 . 2 . 2 3 2 . . Engine 20 | 2 4 . 3 6 2 . 1 . 1 . 1 . . Core 6 | . . . . . 3 . 1 . 1 . 1 . . Reactor 3 | . . . . . . . . . . 3 . . . Propulsion 41 | 2 5 4 3 9 9 2 2 1 2 2 . . . Treads 8 | . . . . . . 1 2 1 2 2 . . . Leg 4 | . . . . 2 2 . . . . . . . . Wheel 28 | 2 4 4 3 7 7 1 . . . . . . . Hover 1 | . 1 . . . . . . . . . . . . Flight . | . . . . . . . . . . . . . . Utility 72 | . 4 . 7 20 5 12 2 2 8 5 6 . 1 Device 43 | . 1 . 2 14 1 9 1 2 5 2 6 . . Storage 4 | . 3 . . . . . . . 1 . . . . Processor 3 | . . . . . . . 1 . 1 . . . 1 Hackware 2 | . . . 1 1 . . . . . . . . . Protection 20 | . . . 4 5 4 3 . . 1 3 . . . Artifact . | . . . . . . . . . . . . . . Weapon 50 | 2 9 . 9 8 5 5 1 1 2 1 7 . . Energy Gun 24 | 1 7 . 5 2 3 3 1 . 1 . 1 . . Energy Cannon 3 | . . . . . . . . . 1 . 2 . . Ballistic Gun 10 | 1 2 . 1 2 . . . 1 . 1 2 . . Ballistic Cannon 8 | . . . 1 4 2 1 . . . . . . . Launcher 5 | . . . 2 . . 1 . . . . 2 . . Special Weapon . | . . . . . . . . . . . . . . Impact Weapon . | . . . . . . . . . . . . . . Slashing Weapon . | . . . . . . . . . . . . . . Piercing Weapon . | . . . . . . . . . . . . . . Special Melee Weapon . | . . . . . . . . . . . . . . Unidentified Prototypes 9 | . . . 2 2 1 1 1 1 . . 1 . . Parts Lost 59 | . 4 . 2 18 12 . . . . 3 19 . 1 Power 9 | . . . . 3 2 . . . . . 4 . . Propulsion 14 | . 2 . . 5 4 . . . . 1 2 . . Utility 20 | . . . 1 6 2 . . . . 2 8 . 1 Weapon 16 | . 2 . 1 4 4 . . . . . 5 . . Highest Loss Streak 12 | . 2 . 1 6 9 . . . . 3 12 . 1 Average Slot Usage (%) 84 | . 93 100 96 79 85 90 91 87 91 80 73 . . Engine 7 | . 14 14 11 8 6 7 7 6 5 2 2 . . Core 2 | . . . . . 6 7 7 6 5 2 1 . . Reactor 1 | . . . . . . . . . . 5 6 . . Treads 4 | . . . . . . 5 9 15 17 12 10 . . Wheel 9 | . 18 28 22 12 8 7 3 . . . . . . Device 17 | . 12 14 10 21 18 14 14 18 26 20 22 . . Storage 8 | . 13 14 11 9 7 7 7 6 5 5 5 . . Hackware 1 | . . . 3 3 5 . . . . . . . . Protection 9 | . . . 16 5 11 23 23 20 16 9 4 . . Energy Gun 6 | . 14 14 17 3 3 6 7 6 3 . . . . Ballistic Gun 5 | . 14 14 . 4 . . . 5 5 9 8 . . Ballistic Cannon 4 | . . . 2 9 10 6 7 . . . . . . Naked Turns 192 | . . . . . . . . . . . 4 65 123 Heaviest Build 129 | 7 41 40 60 85 65 87 85 86 89 126 129 . . Greatest Support 140 | 26 32 26 20 26 32 70 98 126 126 140 140 3 3 Greatest Overweight (x) 18 | . 13 1 2 16 14 8 3 . . 1 18 . . Average Overweight (x) 1 | . 1 1 1 2 2 1 . . . . . . . Largest Inventory Capacity 16 | 4 16 12 12 12 12 12 12 12 12 12 12 4 4 Average Capacity 11 | 4 11 12 12 12 12 12 12 12 12 12 11 4 4 Most Carried 12 | 2 12 12 12 12 12 12 12 12 12 12 12 4 4 Average Carried 11 | . 10 11 11 11 11 12 12 12 12 11 11 4 4 Final Capacity 12 | 4 12 12 12 12 12 12 12 12 12 12 4 4 4 Final Carried 12 | 2 12 12 12 12 12 12 12 12 12 12 4 4 4 Class Distribution -------------------- 67% | Scavenger-Mutant 32% | Mutant Dominant Class ---------------- Mutant | -10/Materials Scavenger-Mutant | -10/Mines Scavenger-Mutant | -9/Materials Mutant | -8/Materials Scavenger-Mutant | -7/Factory Scavenger-Mutant | -7/Waste Scavenger-Mutant | -7/Factory Scavenger-Mutant | -6/Factory Scavenger-Mutant | -5/Factory Scavenger-Mutant | -5/Waste Scavenger-Mutant | -5/Factory Mutant | -4/Factory Mutant | -4/Upper Caves Resources | -11 -10 -10 -9 -8 -7 -7 -7 -6 -5 -5 -5 -4 -4 ----------- Run | Scr Mat Min Mat Mat Fac Was Fac Fac Fac Was Fac Fac Upp Matter Collected 4490 | 195 314 69 242 1671 585 250 66 60 233 281 498 . 26 Remotely . | . . . . . . . . . . . . . . Salvage Created 7179 | . 663 69 940 1974 950 547 89 112 303 276 1256 . . Parts 332 | . 49 8 53 118 37 2 2 2 6 2 53 . . Haulers Intercepted 8 | . 2 . . 4 . . . 1 1 . . . . Recyclers Shooed 13 | . 1 . . 2 3 . . . 1 . 6 . . Parts Field Recycled . | . . . . . . . . . . . . . . Retrieved Matter . | . . . . . . . . . . . . . . Parts Self-Destructed . | . . . . . . . . . . . . . . Prevented . | . . . . . . . . . . . . . . Kills | -11 -10 -10 -9 -8 -7 -7 -7 -6 -5 -5 -5 -4 -4 ------- Run | Scr Mat Min Mat Mat Fac Was Fac Fac Fac Was Fac Fac Upp Combat Hostiles Destroyed 112 | . 13 . 23 44 11 . 2 . 1 1 17 . . Guns 52 | . 13 . 12 11 1 . 1 . . 1 13 . . Cannons 48 | . . . 4 33 9 . 1 . 1 . . . . AOE 11 | . . . 7 . . . . . . . 4 . . Classes Destroyed 17 | . 8 . 4 3 . . . . 1 1 . . . Worker 11 | . 2 1 . 3 1 . . . . . 4 . . Builder 5 | . . . 1 1 3 . . . . . . . . Tunneler 3 | . 1 2 . . . . . . . . . . . Hauler 8 | . 2 . . 4 . . . 1 1 . . . . Recycler 15 | . 2 . . 4 6 . . . 1 . 2 . . Mechanic 1 | . . . . 1 . . . . . . . . . Operator 2 | . 1 . . 1 . . . . . . . . . Watcher 6 | . 1 . 1 3 . . . . . . 1 . . Swarmer 21 | . 6 . 4 11 . . . . . . . . . Grunt 62 | . 7 . 13 21 8 . 1 . . . 12 . . Brawler 4 | . . . 1 2 1 . . . . . . . . Duelist 4 | . . . 1 1 1 . 1 . . . . . . Protector 1 | . . . . 1 . . . . . . . . . Sentry 13 | . . . 4 7 1 . . . . . 1 . . Hunter 1 | . . . . 1 . . . . . . . . . Programmer 5 | . . . . . . . . . 1 . 4 . . Compactor 1 | . . . . . . . . . . 1 . . . Best Kill Streak 12 | . 4 2 5 7 12 . 1 1 2 1 6 . . Combat Bots Only 6 | . 3 . 4 6 3 . 1 . 1 1 4 . . Max Kills in Single Turn 3 | . 1 1 3 3 1 . 1 1 1 1 2 . . Gunslinging . | . . . . . . . . . . . . . . Exploded 3 | . . . 3 . . . . . . . 2 . . Melee . | . . . . . . . . . . . . . . Uniques/NPCs Destroyed . | . . . . . . . . . . . . . . Combat | -11 -10 -10 -9 -8 -7 -7 -7 -6 -5 -5 -5 -4 -4 -------- Run | Scr Mat Min Mat Mat Fac Was Fac Fac Fac Was Fac Fac Upp Damage Taken 11342 | . 652 . 638 3137 1054 . 46 . 761 84 3801 50 1119 Core 3149 | . 180 . 122 489 283 . . . 57 . 866 50 1102 Absorbed by Shields . | . . . . . . . . . . . . . . Reduced by Siege Mode 2 | . . . . . . . . . . . 2 . . Core Remaining (%) 53 | 100 . 28 69 11 . . 59 100 . . 7 . . Volleys Fired 516 | . 81 7 46 164 61 10 3 2 32 9 101 . . Largest 2 | . 2 2 2 2 2 2 2 2 2 2 2 . . Hottest 135 | . 70 60 101 122 113 113 129 35 80 80 135 . . Shots Fired 983 | . 159 14 81 326 101 20 6 4 63 18 191 . . Gun 668 | . 159 14 69 156 35 10 3 4 42 16 160 . . Cannon 308 | . . . 11 170 66 10 3 . 21 2 25 . . Launcher 7 | . . . 1 . . . . . . . 6 . . Special . | . . . . . . . . . . . . . . Kinetic 663 | . 81 7 20 266 66 10 3 2 32 16 160 . . Thermal 228 | . 78 7 32 51 1 . 3 2 27 2 25 . . Explosive . | . . . . . . . . . . . . . . Electromagnetic 92 | . . . 29 9 34 10 . . 4 . 6 . . Robot Hit Streak 18 | . 12 6 12 18 16 12 5 5 10 7 18 . . Robot Miss Streak 15 | . 4 3 4 15 3 1 2 . 3 2 5 . . Penetration Max . | . . . . . . . . . . . . . . Secondary Targets 6 | . 4 . 2 . . . . . . . . . . Max Gunslinging Chain 1 | . 1 . 1 . . . . . . . . . . Shots Hit Robots 733 | . 97 7 66 253 73 18 3 3 47 14 152 . . Core Hits 392 | . 41 4 36 176 46 2 2 2 12 2 68 . 1 Critical Hits 21 | . . . 1 3 . . 1 . 2 1 13 . . Critical Kills 6 | . . . 1 1 . . 1 . . . 3 . . Critical Parts Destroyed 13 | . . . . 2 . . . . 2 . 9 . . Melee Attacks . | . . . . . . . . . . . . . . Impact . | . . . . . . . . . . . . . . Slashing . | . . . . . . . . . . . . . . Piercing . | . . . . . . . . . . . . . . Sneak Attacks . | . . . . . . . . . . . . . . Combat Hostiles . | . . . . . . . . . . . . . . Follow-up Attacks . | . . . . . . . . . . . . . . Damage Inflicted 15177 | . 1000 80 1255 4070 1801 450 69 62 1239 389 4752 5 5 Guns 8366 | . 1000 80 708 1791 486 211 46 62 719 333 2930 . . Cannons 5338 | . . . 174 2242 1147 239 23 . 520 56 937 . . Explosions 1390 | . . . 373 . 168 . . . . . 849 . . Melee . | . . . . . . . . . . . . . . Ramming 83 | . . . . 37 . . . . . . 36 5 5 Kinetic 9035 | . 368 26 251 3137 1147 239 23 24 557 333 2930 . . Thermal 4455 | . 632 54 530 738 168 . 46 38 616 56 1577 . . Explosive . | . . . . . . . . . . . . . . Electromagnetic 1604 | . . . 474 158 486 211 . . 66 . 209 . . Impact . | . . . . . . . . . . . . . . Slashing . | . . . . . . . . . . . . . . Piercing . | . . . . . . . . . . . . . . Highest Corruption 23 | . . . . 2 . . . . 7 7 23 . 4 Average Corruption 4 | . . . . 2 . . . . 4 7 8 . 4 Corruption Purged . | . . . . . . . . . . . . . . Effects 105 | . . . . 22 . . . . 7 22 53 . 1 Message Errors 28 | . . . . 7 . . . . . 9 11 . 1 Matter Fused 10 | . . . . . . . . . 4 1 5 . . Heat Flow Errors 8 | . . . . 3 . . . . . 3 2 . . Energy Discharges 11 | . . . . 2 . . . . . 4 5 . . Parts Rejected 1 | . . . . . . . . . . . 1 . . Data Loss (minor) 13 | . . . . 4 . . . . . 3 6 . . Data Loss (major) 3 | . . . . . . . . . . 1 2 . . Misfires 1 | . . . . . . . . . . 1 . . . Misdirections 1 | . . . . . . . . . . . 1 . . Targeting Errors 22 | . . . . 5 . . . . 3 . 14 . . Weapon Failures 7 | . . . . 1 . . . . . . 6 . . Overload Shots 9 | . . . . . . . . . . . 9 . . Effects 3 | . . . . . . . . . . . 3 . . Meltdown 3 | . . . . . . . . . . . 3 . . Overflow Damage 388 | . . . 6 . 56 . . . 22 . 304 . . Projectiles 119 | . . . . . 18 . . . 22 . 79 . . Explosions 269 | . . . 6 . 38 . . . . . 225 . . Melee . | . . . . . . . . . . . . . . Knockbacks 76 | . . . . 63 12 . . . . . . . 1 Impact 1 | . . . . . . . . . . . . . 1 Kinetic 69 | . . . . 57 12 . . . . . . . . Secondary 6 | . . . . 6 . . . . . . . . . Self-Inflicted Damage 360 | . . . 77 18 27 . . . . . 234 2 2 Shots 11 | . . . 4 . 1 . . . . . 6 . . Rammed 9 | . . . . 2 . . . . . . 5 1 1 Targets Rammed 9 | . . . . 2 . . . . . . 5 1 1 Kicked . | . . . . . . . . . . . . . . Crushed . | . . . . . . . . . . . . . . Highest Temperature 381 | . 60 . 8 381 157 . . . . 231 279 . . Average Temperature 69 | . 13 . 4 113 101 . . . . 126 80 . . Received Heat Transfer 3639 | . 234 . 183 1449 558 . 9 . 90 . 945 18 153 Effects 1 | . . . . 1 . . . . . . . . . Energy Bleed 1 | . . . . 1 . . . . . . . . . Siege Activations 1 | . . . . . . . . . . . 1 . . Total Turns 13 | . . . . . . . . . . . 13 . . Longest Duration 13 | . . . . . . . . . . . 13 . . Robots Corrupted 2 | . . . . . 1 1 . . . . . . . Combat Hostiles 2 | . . . . . 1 1 . . . . . . . Parts Fried 2 | . . . 1 . 1 . . . . . . . . Impact Corruptions . | . . . . . . . . . . . . . . Robots Melted . | . . . . . . . . . . . . . . Combat Hostiles . | . . . . . . . . . . . . . . Parts Melted 7 | . 3 . . . . . . . 2 . 2 . . Heat Transferred 6883 | . 1662 125 907 1323 200 . 74 74 814 74 1630 . . Parts Sabotaged . | . . . . . . . . . . . . . . Parts Stolen . | . . . . . . . . . . . . . . Parts Stripped . | . . . . . . . . . . . . . . Power Chain Reactions 9 | . . . 4 . 3 . . . . . 2 . . Missiles Intercepted . | . . . . . . . . . . . . . . Alert | -11 -10 -10 -9 -8 -7 -7 -7 -6 -5 -5 -5 -4 -4 ------- Run | Scr Mat Min Mat Mat Fac Was Fac Fac Fac Was Fac Fac Upp Peak Influence 767 | . 206 58 538 767 438 153 396 162 502 136 310 120 . Initial 331 | . . 48 1 226 331 153 . 148 79 136 . 105 . Average 240 | . 57 44 342 478 318 99 163 153 363 53 165 106 . Maximum Alert Level 3 | . 1 . 2 3 2 . 1 . 2 . 1 . . Low Security (%) 51 | 100 99 100 20 2 . 100 71 100 8 100 63 100 . Level 1 24 | . . . 28 23 92 . 28 . 62 . 36 . . Level 2 21 | . . . 51 64 7 . . . 29 . . . . Level 3 2 | . . . . 10 . . . . . . . . . Level 4 . | . . . . . . . . . . . . . . Level 5 . | . . . . . . . . . . . . . . High Security . | . . . . . . . . . . . . . . Max Security . | . . . . . . . . . . . . . . Squads Dispatched 36 | . 4 . 4 11 2 . 3 . 6 . 5 1 . Investigation 14 | . 1 . 3 3 . . 1 . 2 . 3 1 . Extermination 4 | . . . . . 1 . 1 . 1 . 1 . . Reinforcement 9 | . 3 . 1 2 1 . 1 . . . 1 . . Assault 2 | . . . . 2 . . . . . . . . . Garrison 7 | . . . . 4 . . . . 3 . . . . Intercept . | . . . . . . . . . . . . . . Construction Impeded 1 | . . . . . 1 . . . . . . . . Haulers Reinforced 1 | . . . . . . . 1 . . . . . . Stealth | -11 -10 -10 -9 -8 -7 -7 -7 -6 -5 -5 -5 -4 -4 --------- Run | Scr Mat Min Mat Mat Fac Was Fac Fac Fac Was Fac Fac Upp Distress Signals 5 | . 1 . . 3 . . . . 1 . . . . Communications Jammed . | . . . . . . . . . . . . . . Distress Signals . | . . . . . . . . . . . . . . Times Spotted 211 | . 30 . 26 75 14 . 11 . 11 1 30 2 11 Peak Tracking Total 9 | . 6 . 4 9 4 . 3 . 3 1 7 3 7 Tactical Retreats 9 | . . . 1 2 2 . . . . . 3 . 1 Traps | -11 -10 -10 -9 -8 -7 -7 -7 -6 -5 -5 -5 -4 -4 ------- Run | Scr Mat Min Mat Mat Fac Was Fac Fac Fac Was Fac Fac Upp Traps Triggered 9 | . 1 . 1 3 1 . . . 1 . 2 . . Indirectly . | . . . . . . . . . . . . . . Trap Hack Attempts . | . . . . . . . . . . . . . . Triggered . | . . . . . . . . . . . . . . Disarmed . | . . . . . . . . . . . . . . Reprogrammed . | . . . . . . . . . . . . . . Reused . | . . . . . . . . . . . . . . Traps Extracted . | . . . . . . . . . . . . . . Installed . | . . . . . . . . . . . . . . Triggered . | . . . . . . . . . . . . . . Machines | -11 -10 -10 -9 -8 -7 -7 -7 -6 -5 -5 -5 -4 -4 ---------- Run | Scr Mat Min Mat Mat Fac Was Fac Fac Fac Was Fac Fac Upp Machines Disabled 14 | . . . 1 1 2 . 2 . 3 . 5 . . Max in Single Turn 4 | . . . 1 1 1 . 1 . 1 . 4 . . Machines Sabotaged . | . . . . . . . . . . . . . . Garrisons Compromised . | . . . . . . . . . . . . . . Overloaded Fab Kills . | . . . . . . . . . . . . . . Fab Network Shutdowns . | . . . . . . . . . . . . . . Hacking | -11 -10 -10 -9 -8 -7 -7 -7 -6 -5 -5 -5 -4 -4 --------- Run | Scr Mat Min Mat Mat Fac Was Fac Fac Fac Was Fac Fac Upp Machines Accessed 41 | . 7 . 2 14 2 . 4 1 2 . 7 2 . Terminals 19 | . 5 . . 8 1 . 1 . . . 3 1 . Fabricators 3 | . . . . . . . 1 . 1 . 1 . . Repair Stations 6 | . 1 . . 1 1 . 2 . . . . 1 . Recycling Units 4 | . 1 . . 2 . . . . . . 1 . . Scanalyzers 6 | . . . 2 2 . . . . . . 2 . . Garrison Access 3 | . . . . 1 . . . 1 1 . . . . Total Hacks 117 | . 28 . 2 45 6 . 13 2 4 . 12 5 . Successful 62 | . 17 . 2 28 3 . 7 . . . 5 . . Failed 55 | . 11 . . 17 3 . 6 2 4 . 7 5 . Catastrophic 9 | . . . . 2 . . 1 . 2 . 2 2 . Database Lockouts . | . . . . . . . . . . . . . . Manual 84 | . 26 . 2 32 5 . 4 . 4 . 9 2 . Terminals 75 | . 24 . . 35 4 . 4 . . . 6 2 . Fabricators 7 | . . . . . . . 2 . 3 . 2 . . Repair Stations 16 | . 2 . . 2 2 . 7 . . . . 3 . Recycling Units 8 | . 2 . . 4 . . . . . . 2 . . Scanalyzers 6 | . . . 2 2 . . . . . . 2 . . Garrison Access 5 | . . . . 2 . . . 2 1 . . . . Terminal Hacks 14 | . 4 . . 7 1 . 2 . . . . . . Robot Analysis 1 | . . . . 1 . . . . . . . . . Prototype ID Bank 3 | . . . . 2 1 . . . . . . . . Terminal Index 2 | . 2 . . . . . . . . . . . . Alert Level 3 | . 1 . . 2 . . . . . . . . . Unreport Threat 3 | . . . . 1 . . 2 . . . . . . Locate Traps 1 | . . . . 1 . . . . . . . . . Zone Layout 1 | . 1 . . . . . . . . . . . . Fabricator Hacks 2 | . . . . . . . 1 . . . 1 . . Build 2 | . . . . . . . 1 . . . 1 . . Repair Station Hacks 5 | . . . . 2 . . 3 . . . . . . Scan Component 3 | . . . . 1 . . 2 . . . . . . Repair 2 | . . . . 1 . . 1 . . . . . . Recycling Unit Hacks 3 | . 1 . . 2 . . . . . . . . . Retrieve Components 3 | . 1 . . 2 . . . . . . . . . Scanalyzer . | . . . . . . . . . . . . . . Garrison Access Hacks . | . . . . . . . . . . . . . . Unauthorized Hacks 38 | . 12 . 2 17 2 . 1 . . . 4 . . Terminals 27 | . 10 . . 13 1 . 1 . . . 2 . . Track 5 | . 2 . . 3 . . . . . . . . . Assimilate 1 | . . . . 1 . . . . . . . . . Botnet 15 | . 5 . . 6 1 . 1 . . . 2 . . Detonate 1 | . . . . 1 . . . . . . . . . Disrupt 3 | . 2 . . 1 . . . . . . . . . Operators 2 | . 1 . . 1 . . . . . . . . . Fabricators . | . . . . . . . . . . . . . . Repair Stations 2 | . 1 . . . 1 . . . . . . . . Mechanics 2 | . 1 . . . 1 . . . . . . . . Recycling Units 3 | . 1 . . 2 . . . . . . . . . Reject 3 | . 1 . . 2 . . . . . . . . . Scanalyzers 6 | . . . 2 2 . . . . . . 2 . . Extract 6 | . . . 2 2 . . . . . . 2 . . Garrison Access . | . . . . . . . . . . . . . . Data Cores Recovered . | . . . . . . . . . . . . . . Used . | . . . . . . . . . . . . . . Hacking Detections 30 | . 5 . . 10 2 . 3 1 2 . 5 2 . Full Trace Events 4 | . . . . 1 . . 1 . 1 . . 1 . Feedback Events . | . . . . . . . . . . . . . . Feedback Blocked . | . . . . . . . . . . . . . . Robot Schematics Acquired . | . . . . . . . . . . . . . . Robots Built 3 | . . . . . . . 3 . . . . . . Matter 186 | . . . . . . . 186 . . . . . . Time 49 | . . . . . . . 49 . . . . . . Total Robot Build Rating 6 | . . . . . . . 6 . . . . . . Part Schematics Acquired 20 | . . . 4 7 . . . . . . 9 . . Parts Built . | . . . . . . . . . . . . . . Matter 234 | . . . . . . . . . . . 234 . . Time 58 | . . . . . . . . . . . 58 . . Total Part Build Rating . | . . . . . . . . . . . . . . Parts Repaired 2 | . . . . 1 . . 1 . . . . . . Time 116 | . . . . 38 . . 78 . . . . . . Parts Recycled . | . . . . . . . . . . . . . . Recycled Matter . | . . . . . . . . . . . . . . Retrieved Matter . | . . . . . . . . . . . . . . Retrieved Components 29 | . 9 . . 20 . . . . . . . . . Parts Scanalyzed . | . . . . . . . . . . . . . . Part Schematics Acquired . | . . . . . . . . . . . . . . Parts Damaged . | . . . . . . . . . . . . . . Bothacking | -11 -10 -10 -9 -8 -7 -7 -7 -6 -5 -5 -5 -4 -4 ------------ Run | Scr Mat Min Mat Mat Fac Was Fac Fac Fac Was Fac Fac Upp Used RIF Installer . | . . . . . . . . . . . . . . Robots Hacked . | . . . . . . . . . . . . . . Non-combat . | . . . . . . . . . . . . . . Combat . | . . . . . . . . . . . . . . Robot Hacks Applied . | . . . . . . . . . . . . . . Relay Couplers Released 7 | . . . . . . . . . 4 . 3 . . Programmers 7 | . . . . . . . . . 4 . 3 . . Robots Rewired . | . . . . . . . . . . . . . . Allies Hacked 1 | . . . . . . . . . 1 . . . . Hacks Repelled . | . . . . . . . . . . . . . . Allies | -11 -10 -10 -9 -8 -7 -7 -7 -6 -5 -5 -5 -4 -4 -------- Run | Scr Mat Min Mat Mat Fac Was Fac Fac Fac Was Fac Fac Upp Total Allies 24 | . . . . 1 . 20 3 . . . . . . Largest Group 20 | . . . . 1 . 20 20 15 15 2 . . . Highest-Rated Group 528 | . . . . 10 . 528 528 425 425 63 . . . Highest-Rated Ally 35 | . . . . 10 . 35 35 35 35 32 . . . Total Orders . | . . . . . . . . . . . . . . Ally Attacks 184 | . . . . . . . 99 . 85 . . . . Total Damage 4453 | . . . . . . . 2032 . 2421 . . . . Kills 28 | . . . . . . . 14 . 14 . . . . Allies Corrupted 1 | . . . . . . . 1 . . . . . . Allies Melted . | . . . . . . . . . . . . . . Intel | -11 -10 -10 -9 -8 -7 -7 -7 -6 -5 -5 -5 -4 -4 ------- Run | Scr Mat Min Mat Mat Fac Was Fac Fac Fac Was Fac Fac Upp Robot Analysis Total 1 | . . . . 1 . . . . . . . . . Derelict Logs Recovered 1 | . . 1 . . . . . . . . . . . Drone Launches . | . . . . . . . . . . . . . . Drone Recoveries . | . . . . . . . . . . . . . . Exploration | -11 -10 -10 -9 -8 -7 -7 -7 -6 -5 -5 -5 -4 -4 ------------- Run | Scr Mat Min Mat Mat Fac Was Fac Fac Fac Was Fac Fac Upp Turns Passed 10127 | 39 1392 464 633 2478 785 615 758 296 537 871 1046 65 148 Spaces Moved 5981 | 35 808 438 430 1422 433 353 353 172 255 459 446 128 249 Core 404 | 4 7 . . 4 2 . . . . . 10 128 249 Treads 1943 | . . . . . . 268 353 172 255 459 436 . . Legs 204 | . . . . 108 96 . . . . . . . . Wheels 3382 | 31 753 438 430 1310 335 85 . . . . . . . Hover 48 | . 48 . . . . . . . . . . . . Flight . | . . . . . . . . . . . . . . Fastest Speed 50 | 50 90 90 90 100 100 100 160 160 160 160 50 50 50 Average Speed 130 | 84 128 95 99 126 132 155 177 160 162 168 161 50 50 Slowest Speed 950 | 90 700 100 100 850 750 180 220 160 166 185 950 50 50 Overloaded Moves . | . . . . . . . . . . . . . . Propulsion Burnouts . | . . . . . . . . . . . . . . Robots Hopped . | . . . . . . . . . . . . . . Cave-ins Triggered 1 | . . . . . . . . . 1 . . . . Exploration Rate (%) 41 | 3 83 80 27 84 10 95 12 5 10 96 18 5 53 Regions Visited 13 Branch Regions 2 Pre-discovered Areas 1 | . . 1 . . . . . . . . . . . Known Exits Taken . | . . . . . . . . . . . . . . Unknown Exits Taken 9 | 1 1 1 1 1 . . 1 1 . . 1 1 . Scrap Searched 1 | . . . . . . . . . . . . . 1 Spaces Dug . | . . . . . . . . . . . . . . Terrain Destroyed 44 | . . . 10 . 7 . . . 1 . 26 . . Melee . | . . . . . . . . . . . . . . Projectile 7 | . . . . . 3 . . . 1 . 3 . . AOE 37 | . . . 10 . 4 . . . . . 23 . . Terrain Rammed . | . . . . . . . . . . . . . . Walls Destroyed . | . . . . . . . . . . . . . . Machines Disabled . | . . . . . . . . . . . . . . Actions | -11 -10 -10 -9 -8 -7 -7 -7 -6 -5 -5 -5 -4 -4 --------- Run | Scr Mat Min Mat Mat Fac Was Fac Fac Fac Was Fac Fac Upp Total 7420 | 41 1029 472 574 1817 542 405 480 193 326 549 592 128 272 Wait 462 | . 75 18 25 138 6 7 108 8 7 56 14 . . Move 5970 | 34 807 437 429 1421 433 352 352 171 255 458 445 127 249 Hop . | . . . . . . . . . . . . . . Pick Up 79 | 1 20 1 18 18 8 . 2 3 2 3 3 . . Fast Attach 90 | 5 5 . 7 24 12 6 5 4 7 6 8 . 1 Attach 25 | . 3 . 2 7 7 . . . . 1 5 . . Detach 2 | . 1 . . . . . . . . . 1 . . Swap 80 | 1 14 4 13 12 5 13 2 . 10 4 2 . . Drop 166 | . 23 5 34 31 10 17 8 5 13 12 8 . . Fire 516 | . 81 7 46 164 61 10 3 2 32 9 101 . . Melee . | . . . . . . . . . . . . . . Ram 4 | . . . . 2 . . . . . . . 1 1 Kick . | . . . . . . . . . . . . . . Crush 5 | . . . . . . . . . . . 5 . . Escape Stasis . | . . . . . . . . . . . . . . Rewire 21 | . . . . . . . . . . . . . 21 Trap . | . . . . . . . . . . . . . . Miscellaneous . | . . . . . . . . . . . . . . Route ------- -11/Scrapyard -10/Materials (discovered 4 exits: *Mat x2 / [*Min x2]) -10/Mines (discovered 2 exits: *Mat x2) -9/Materials (discovered 2 exits: *Mat / [*Sto]) -8/Materials (discovered 3 exits: *Fac x3) -7/Factory -7/Waste -7/Factory -6/Factory -5/Factory -5/Waste -5/Factory -4/Factory -4/Upper Caves History --------- Turn | Location | Event 21 | -11/Scrapyard | Discovered new exit (range 15) 40 | -11/Scrapyard | Entered Materials 319 | -10/Materials | Build established: Mutant 333 | -10/Materials | Discovered new exit (range 9) 418 | -10/Materials | Discovered new exit (range 15) 544 | -10/Materials | Core integrity fell below 50% 975 | -10/Materials | Discovered new exit (range 13) 1384 | -10/Materials | Discovered new exit (range 9) 1432 | -10/Materials | Entered Mines 1433 | -10/Mines | Met a Derelict bent on vengeance 1554 | -10/Mines | Discovered new exit (range 6) 1649 | -10/Mines | Build established: Scavenger-Mutant 1765 | -10/Mines | Learned Materials stockpile data 1777 | -10/Mines | Found a hidden stash of uninstalled traps 1812 | -10/Mines | Learned location of Storage (-9) 1875 | -10/Mines | Discovered new exit (range 7) 1896 | -10/Mines | Entered Materials 1896 | -9/Materials | Evolved 2 slots: Utility x2 2054 | -9/Materials | Discovered new exit (range 16) 2526 | -9/Materials | Discovered new exit (range 4) 2529 | -9/Materials | Entered another Materials area 2529 | -8/Materials | Evolved 2 slots: Utility x2 2844 | -8/Materials | Repaired Hvy. Armor Plating 2884 | -8/Materials | Build established: Mutant 2888 | -8/Materials | Discovered new exit (range 3) 2931 | -8/Materials | Garrison activated, responded to threat 3036 | -8/Materials | Garrison activated, responded to threat 3176 | -8/Materials | Lost 3 parts (3u) 3296 | -8/Materials | Lost 3 parts (1p1n1u) 3390 | -8/Materials | Discovered new exit (range 15) 3883 | -8/Materials | Core integrity fell below 50% 4129 | -8/Materials | First assault squad dispatched 4235 | -8/Materials | Lost 6 parts (1p2n2u1w) 4243 | -8/Materials | Core integrity fell below 20% 4533 | -8/Materials | Discovered new exit (range 14) 4573 | -8/Materials | Build established: Scavenger-Mutant 5007 | -8/Materials | Entered Factory 5007 | -7/Factory | Evolved 2 slots: Power x1, Propulsion x1 5430 | -7/Factory | Lost 9 parts (2p3n1u3w) 5792 | -7/Factory | Sucked down chute 5792 | -7/Factory | Entered Waste 5793 | -7/Waste | Joined by Warlord forces that had cleared the area 6335 | -7/Waste | Discovered new exit (range 11) 6407 | -7/Waste | Entered Factory 6407 | -7/Factory | Accompanied by 20 allies 6649 | -7/Factory | Fabricated L-31 Rogue? 6917 | -7/Factory | P-60 Hacker assimilated allied 70-1DG(l) 6966 | -7/Factory | Repaired Broken Hvy. Treads 7117 | -7/Factory | Discovered new exit (range 3) 7165 | -7/Factory | Entered another Factory area 7165 | -6/Factory | Accompanied by 15 allies 7165 | -6/Factory | Evolved 2 slots: Propulsion x1, Utility x1 7423 | -6/Factory | Discovered new exit (range 13) 7461 | -6/Factory | Entered another Factory area 7461 | -5/Factory | Accompanied by 15 allies 7461 | -5/Factory | Evolved 2 slots: Utility x2 7542 | -5/Factory | Garrison activated, responded to threat 7560 | -5/Factory | Crushed by falling debris 7734 | -5/Factory | P-70 Sage assimilated allied IA-I8J(g) 7901 | -5/Factory | P-80 Master assimilated allied Rogue 4a 7903 | -5/Factory | P-80 Master assimilated allied Rogue 4b 7998 | -5/Factory | Sucked down chute 7998 | -5/Factory | Entered Waste 7998 | -5/Waste | The area was eerily silent 8040 | -5/Waste | 2 allies followed down the chute 8230 | -5/Waste | A Compactor rumbled back to life 8234 | -5/Waste | Crushed by Compactor (1 part destroyed, 1 dropped) 8236 | -5/Waste | Spotted C-40 Crusher 8239 | -5/Waste | Crushed by Compactor (1 part destroyed, 1 dropped) 8270 | -5/Waste | Lost 3 parts (1n2u) 8310 | -5/Waste | Destroyed C-40 Crusher 8325 | -5/Waste | Found Damper Plating 8549 | -5/Waste | Discovered new exit (range 14) 8869 | -5/Waste | Entered Factory 9802 | -5/Factory | System corruption reached 10% 9901 | -5/Factory | Discovered new exit (range 9) 9902 | -5/Factory | Core integrity fell below 50% 9912 | -5/Factory | Core integrity fell below 20% 9915 | -5/Factory | Entered another Factory area 9915 | -4/Factory | Evolved 2 slots: Utility x2 9940 | -4/Factory | Lost 12 parts (2p2n4u4w) 9972 | -4/Factory | Discovered new exit (range 15) 9980 | -4/Factory | Entered Upper Caves 10107 | -4/Upper Caves | Attracted the attention of an 0b10 outpost 10116 | -4/Upper Caves | Core integrity fell below 50% 10125 | -4/Upper Caves | Core integrity fell below 20% 10128 | -4/Upper Caves | Destroyed by S-27 Virus with Autogun Last Messages --------------- 10106_ L-61 Swordsman knocked back. 10106_ S-27 Virus springs to life. 10106_ B-60 Warrior springs to life. 10106_ Penetrated by Slug. 10106_ Slug penetrates B-60 Warrior. 10106_ S-27 Virus springs to life. 10107_ Y-72 Warden: "DETECTED UNIDENTIFIED DERELICT." 10108_ Attempting to rewire Y-64 Sentinel. 10109_ Penetrated by Slug. 10110_ ZE>&DC|F6CD6OU0J8SJZVRO6PTHDNWBV3TI 10110_ Attempting to rewire Y-64 Sentinel. 10111_ Y-72 Warden: "REQUESTING BACKUP." 10111_ Attempting to rewire Y-64 Sentinel. 10112_ Penetrated by Slug. 10113_ Attempting to rewire Y-64 Sentinel. 10124_ Penetrated by Slug. 10124_ Slug penetrates Y-64 Sentinel. 10125_ Attempting to rewire Y-64 Sentinel. 10127_ Penetrated by Slug. 10127_ Slug penetrates Y-64 Sentinel. Map ----- +----------------------------------------------------+ | ?????????????????????????????????????????????????? | | ?????????????????????????????????????????????????? | | ?????????????????????????????????????????????????? | | ?????????????????????????????????????????????????? | | ?????????????????????????????????????????????????? | | ?????????????????????????????????????????????????? | | ?????????????????????????????????????????????????? | | ?????????????????????????????????????????????????? | | ?????????????????????????????????????????????????? | | ?????????????????????????????????????????????????? | | ?????????????????????????????????????????????????? | | ?????????????????????????????????????????????????? | | ?????????????????????????????????????????????????? | | ?????????????????????????????????????????????????? | | ?????????????????????????????????????????????????? | | ?????????????????????????????????????????????????? | | ????????????????????????????????###??????????????# | | ???????????????##??????????????? ##?????######### | | ???????????????# ?????????????? ##????# | | ???????????????# ????????????? ###### | | ???????????????# #??????????? ## ### | | ???????????????? ######????? ## #?# | | ????????????????? ##?? ## #####?## | | ?????????????????? ### ## #?####### | | ??????????????????? ?# ### ### | | ???????????????????? ##@ ## #?????# #??# | | ????????????????????# #Yb # #?????## #??? | | ????????????????????# #Y Y # #??????#### #??? | | ?????????????????????# ###ss### #????????## ##??? | | ?????????????????????# + g # #????????# ### | | ?????????????????????# # # ########## | | ?????????????????????# #""""""# ## ## | | ?????????????????????# ######## | | ????????????????????## | | ???????????????????## ### ######## | | ???????????????????# #?# #???????# | | ??????????????????# ## ### #???????# | | ??????????????????# ######?## ##????????## | | ??????????????????# #????????# ####???????????# | | ?????????????????# ?????????# #??????????????? | | ????????????????# ?????????# #?????????????? | | ???????????????# ????????? ## ##?????????????? | | ??????????????# ???????? #?###??????????????? | | ??????????????# ## ????????# ???????????????????? | | ?????????????? ?##????????#????????????????????? | | ?????????????# ?????????????????????????????????? | | ?????????????## ?????????????????????????????????? | | ?????????????????????????????????????????????????? | | ?????????????????????????????????????????????????? | | ?????????????????????????????????????????????????? | +----------------------------------------------------+ Best States ------------- Heat Dissipation 140 Energy Generation 37 Energy Capacity 550 Matter Stores 300 Matter Capacity 300 Sight Range 16 Terrain Scan Density 10 Base Temperature (-) 100 Armor Coverage 2400 Resistance: TH 25 Resistance: EM 90 Propulsion Shielding 66 Utility Shielding 66 Weapon Shielding 33 Point Defense Rating 160 Evasion (%) 50 Target Analysis 8 Recoil Reduction 10 Matter Filtering 30 Particle Charging 15 Offensive Hacking 10 Item Schematics ----------------- EM Shotgun | -9/Materials | Extracted Med. Laser | -9/Materials | Extracted Lgt. Ion Engine | -9/Materials | Extracted Lgt. Armor Plating | -9/Materials | Extracted Particle Charger | -8/Materials | Extracted Utility Shielding | -8/Materials | Extracted Med. Storage Unit | -8/Materials | Extracted Carbon-fiber Leg | -8/Materials | Extracted Hvy. Particle Cannon | -8/Materials | Extracted Imp. Datajack | -8/Materials | Extracted Imp. Treads | -8/Materials | Extracted Imp. Thermal Shield | -5/Factory | Extracted Field Propulsion Drive | -5/Factory | Extracted Variable Charge Gun | -5/Factory | Extracted Imp. Core Analyzer | -5/Factory | Extracted Weight Redist. System | -5/Factory | Extracted Recoil Stabilizer | -5/Factory | Extracted Shock Maul | -5/Factory | Extracted Imp. Utility Shielding | -5/Factory | Extracted Axe | -5/Factory | Extracted Robot Schematics ------------------ None Fabricated ------------ L-31 Rogue | x3 | -7/Factory | Preloaded Alien Tech Used ----------------- None Achievements -------------- None Challenges ------------ None Game ------ Seed SmartbombTerrainInterpreter Manual? 0 Play Time 01:07:36 Cumulative 52.8 hours Start 2022.02.19 @ 11:22:14 End 2022.02.19 @ 12:32:15 Sessions 1 Manual Loads 0 Difficulty Rogue Special Mode None Game No. 97 Rogue 97 Adventurer 0 Explorer 0 Win Type - Total 0 Types 0/0/0/0/0/0/0/0/0 Lore% 55 Gallery% 56 Achievement% 42 Wizard Run 0 Options --------- ASCII 0 Keyboard 1 Movement Numpad Keybinds 0 Fullscreen 1 Font 24/Smallcaps Map View 76x50 Tactical HUD 1 Map Filters NONE Filters NONE Steam 1 RUN: 9e15917b-c191-4e95-af98-6b82e2e7b1b5